Cogmind - Beta 10.2 @@@ ROGUE MODE // 2021.07.18 @ 00:52:10 Player: User Result: Destroyed by S-10 Pest with Light Assault Rifle Performance ------------- Evolutions (0) 0 Regions Visited (2) 400 Robots Destroyed (12) 60 Value Destroyed (287) 287 Prototype IDs (0) 0 Alien Tech Used (0) 0 Bonus (0) 0 TOTAL SCORE: 747 Bonus ------- None Cogmind --------- Core Integrity 0/250 Matter 290/300 Energy 12/100 System Corruption 0% Temperature Cool (0) Movement Walking (120) Location -10/Mines Parts ------- > --- POWER (1) -------- (None) > --- PROPULSION (2) --- Aluminum Leg Aluminum Leg > --- UTILITY (2) ------ Heat Sink Large Storage Unit > --- WEAPON (2) ------- (None) > --- INVENTORY (10) --- Ion Engine Light Nuclear Core Aluminum Leg Aluminum Leg Improved Heat Sink High-capacity Battery (400) ECM Suite Peak State ------------ > --- POWER ------------ Ion Engine > --- PROPULSION ------- Aluminum Leg Aluminum Leg > --- UTILITY ---------- Heat Sink Large Storage Unit > --- WEAPON ----------- Assault Rifle Light Assault Rifle > --- INVENTORY -------- Ion Engine Light Nuclear Core Aluminum Leg Aluminum Leg Improved Heat Sink High-capacity Battery ECM Suite Mining Laser [Rating: 8] Favorites ----------- Power Ion Engine Engine Ion Engine Propulsion Aluminum Leg Leg Aluminum Leg Utility Large Storage Unit Device Heat Sink Storage Large Storage Unit Weapon Assault Rifle Energy Gun EM Pulse Gun Ballistic Gun Assault Rifle Special Weapon Mining Laser Build | -11 -10 -10 ------- Run | Scr Mat Min Slots Evolved . | . . . Power . | . . . Propulsion . | . . . Utility . | . . . Weapon . | . . . Parts Attached 18 | 6 1 11 Power 2 | 1 . 1 Engine 2 | 1 . 1 Core . | . . . Reactor . | . . . Propulsion 5 | 2 . 3 Treads . | . . . Leg 5 | 2 . 3 Wheel . | . . . Hover . | . . . Flight . | . . . Utility 3 | 1 1 1 Device 1 | . . 1 Storage 2 | 1 1 . Processor . | . . . Hackware . | . . . Protection . | . . . Artifact . | . . . Weapon 8 | 2 . 6 Energy Gun 2 | 1 . 1 Energy Cannon . | . . . Ballistic Gun 4 | 1 . 3 Ballistic Cannon . | . . . Launcher . | . . . Special Weapon 2 | . . 2 Impact Weapon . | . . . Slashing Weapon . | . . . Piercing Weapon . | . . . Special Melee Weapon . | . . . Unidentified Prototypes . | . . . Parts Lost 11 | . . 11 Power 2 | . . 2 Propulsion 3 | . . 3 Utility . | . . . Weapon 6 | . . 6 Highest Loss Streak 4 | . . 4 Average Slot Usage (%) 81 | . 85 81 Engine 13 | . 14 13 Leg 23 | . 28 22 Device 5 | . . 6 Storage 14 | . 14 14 Energy Gun 4 | . 14 2 Ballistic Gun 19 | . 14 20 Naked Turns . | . . . Heaviest Build 25 | 13 25 25 Greatest Support 20 | 20 20 20 Greatest Overweight (x) 2 | 1 1 2 Average Overweight (x) . | . . 1 Largest Inventory Capacity 12 | 6 12 10 Average Capacity 9 | 5 7 10 Most Carried 10 | 4 6 10 Average Carried 7 | 1 4 8 Final Capacity 10 | 6 10 10 Final Carried 7 | 2 6 7 Class Distribution -------------------- 100% | Mutant Dominant Class ---------------- Mutant | -10/Materials Mutant | -10/Mines Resources | -11 -10 -10 ----------- Run | Scr Mat Min Matter Collected 538 | 199 . 339 Remotely . | . . . Salvage Created 382 | . . 382 Parts 22 | . . 22 Haulers Intercepted . | . . . Recyclers Shooed 1 | . . 1 Parts Field Recycled . | . . . Retrieved Matter . | . . . Parts Self-Destructed . | . . . Prevented . | . . . Kills | -11 -10 -10 ------- Run | Scr Mat Min Combat Hostiles Destroyed 14 | . . 14 Guns 13 | . . 13 Cannons 1 | . . 1 Classes Destroyed 3 | . . 3 Swarmer 6 | . . 6 Grunt 6 | . . 6 Assembled 2 | . . 2 Best Kill Streak 4 | . . 4 Combat Bots Only 4 | . . 4 Max Kills in Single Turn 1 | . . 1 Gunslinging . | . . . Exploded . | . . . Melee . | . . . Uniques/NPCs Destroyed . | . . . Combat | -11 -10 -10 -------- Run | Scr Mat Min Damage Taken 1114 | . . 1114 Core 258 | . . 258 Absorbed by Shields . | . . . Core Remaining (%) 100 | 100 . . Volleys Fired 68 | . 5 63 Largest 2 | . 2 2 Hottest 100 | . 60 100 Shots Fired 107 | . 10 97 Gun 102 | . 10 92 Cannon . | . . . Launcher . | . . . Special 5 | . . 5 Kinetic 84 | . 5 79 Thermal 8 | . . 8 Explosive . | . . . Electromagnetic 15 | . 5 10 Robot Hit Streak 8 | . 2 8 Robot Miss Streak 7 | . 4 7 Penetration Max . | . . . Secondary Targets 2 | . . 2 Max Gunslinging Chain 1 | . . 1 Shots Hit Robots 53 | . 4 49 Core Hits 23 | . . 23 Critical Hits . | . . . Critical Kills . | . . . Critical Parts Destroyed . | . . . Melee Attacks . | . . . Impact . | . . . Slashing . | . . . Piercing . | . . . Sneak Attacks . | . . . Combat Hostiles . | . . . Follow-up Attacks . | . . . Damage Inflicted 782 | . 76 706 Guns 665 | . 35 630 Cannons . | . . . Explosions 41 | . 41 . Melee . | . . . Ramming 4 | . . 4 Kinetic 599 | . 15 584 Thermal 137 | . 41 96 Explosive . | . . . Electromagnetic 42 | . 20 22 Impact . | . . . Slashing . | . . . Piercing . | . . . Highest Corruption . | . . . Average Corruption . | . . . Corruption Purged . | . . . Overload Shots . | . . . Overflow Damage 4 | . . 4 Projectiles 4 | . . 4 Explosions . | . . . Melee . | . . . Knockbacks . | . . . Impact . | . . . Kinetic . | . . . Secondary . | . . . Self-Inflicted Damage 1 | . . 1 Shots . | . . . Rammed 1 | . . 1 Targets Rammed 2 | . . 2 Kicked 1 | . . 1 Crushed . | . . . Highest Temperature 50 | . . 50 Average Temperature 17 | . . 17 Received Heat Transfer 195 | . . 195 Siege Activations . | . . . Robots Corrupted . | . . . Combat Hostiles . | . . . Parts Fried . | . . . Impact Corruptions . | . . . Robots Melted . | . . . Combat Hostiles . | . . . Parts Melted . | . . . Heat Transferred 250 | . 50 200 Parts Sabotaged . | . . . Parts Stolen . | . . . Parts Stripped . | . . . Power Chain Reactions 1 | . 1 . Missiles Intercepted . | . . . Alert | -11 -10 -10 ------- Run | Scr Mat Min Peak Influence 115 | . 15 115 Initial 5 | . . 5 Average 39 | . 8 49 Maximum Alert Level . | . . . Low Security (%) 100 | 100 100 100 Level 1 . | . . . Level 2 . | . . . Level 3 . | . . . Level 4 . | . . . Level 5 . | . . . High Security . | . . . Max Security . | . . . Squads Dispatched . | . . . Investigation . | . . . Extermination . | . . . Reinforcement . | . . . Assault . | . . . Garrison . | . . . Intercept . | . . . Construction Impeded . | . . . Haulers Reinforced . | . . . Stealth | -11 -10 -10 --------- Run | Scr Mat Min Distress Signals . | . . . Communications Jammed . | . . . Distress Signals . | . . . Times Spotted 21 | . 3 18 Peak Tracking Total 3 | . 2 3 Tactical Retreats 1 | . . 1 Traps | -11 -10 -10 ------- Run | Scr Mat Min Traps Triggered . | . . . Indirectly . | . . . Trap Hack Attempts . | . . . Triggered . | . . . Disarmed . | . . . Reprogrammed . | . . . Reused . | . . . Traps Extracted . | . . . Installed . | . . . Triggered . | . . . Machines | -11 -10 -10 ---------- Run | Scr Mat Min Machines Disabled 1 | . . 1 Max in Single Turn 1 | . . 1 Machines Sabotaged . | . . . Garrisons Compromised . | . . . Overloaded Fab Kills . | . . . Fab Network Shutdowns . | . . . Hacking | -11 -10 -10 --------- Run | Scr Mat Min Machines Accessed . | . . . Terminals . | . . . Fabricators . | . . . Repair Stations . | . . . Recycling Units . | . . . Scanalyzers . | . . . Garrison Access . | . . . Total Hacks . | . . . Successful . | . . . Failed . | . . . Catastrophic . | . . . Database Lockouts . | . . . Manual . | . . . Terminals . | . . . Fabricators . | . . . Repair Stations . | . . . Recycling Units . | . . . Scanalyzers . | . . . Garrison Access . | . . . Terminal Hacks . | . . . Fabricator Hacks . | . . . Repair Station Hacks . | . . . Recycling Unit Hacks . | . . . Scanalyzer . | . . . Garrison Access Hacks . | . . . Unauthorized Hacks . | . . . Terminals . | . . . Fabricators . | . . . Repair Stations . | . . . Recycling Units . | . . . Scanalyzers . | . . . Garrison Access . | . . . Data Cores Recovered . | . . . Used . | . . . Hacking Detections . | . . . Full Trace Events . | . . . Feedback Events . | . . . Feedback Blocked . | . . . Robot Schematics Acquired . | . . . Robots Built . | . . . Matter . | . . . Time . | . . . Total Robot Build Rating . | . . . Part Schematics Acquired . | . . . Parts Built . | . . . Matter . | . . . Time . | . . . Total Part Build Rating . | . . . Parts Repaired . | . . . Time . | . . . Parts Recycled . | . . . Recycled Matter . | . . . Retrieved Matter . | . . . Retrieved Components . | . . . Parts Scanalyzed . | . . . Part Schematics Acquired . | . . . Parts Damaged . | . . . Bothacking | -11 -10 -10 ------------ Run | Scr Mat Min Used RIF Installer . | . . . Robots Hacked . | . . . Non-combat . | . . . Combat . | . . . Robot Hacks Applied . | . . . Relay Couplers Released . | . . . Robots Rewired . | . . . Allies Hacked . | . . . Hacks Repelled . | . . . Allies | -11 -10 -10 -------- Run | Scr Mat Min Total Allies . | . . . Largest Group . | . . . Highest-Rated Group . | . . . Highest-Rated Ally . | . . . Total Orders . | . . . Ally Attacks . | . . . Total Damage . | . . . Kills . | . . . Allies Corrupted . | . . . Allies Melted . | . . . Intel | -11 -10 -10 ------- Run | Scr Mat Min Robot Analysis Total . | . . . Derelict Logs Recovered 1 | . . 1 Drone Launches . | . . . Drone Recoveries . | . . . Exploration | -11 -10 -10 ------------- Run | Scr Mat Min Turns Passed 1115 | 78 169 868 Spaces Moved 587 | 56 109 422 Core 6 | 6 . . Treads . | . . . Legs 581 | 50 109 422 Wheels . | . . . Hover . | . . . Flight . | . . . Fastest Speed 50 | 50 120 120 Average Speed 149 | 115 131 158 Slowest Speed 180 | 120 150 180 Overloaded Moves . | . . . Propulsion Burnouts . | . . . Robots Hopped . | . . . Cave-ins Triggered . | . . . Exploration Rate (%) 38 | 4 26 84 Regions Visited 2 Branch Regions 1 Pre-discovered Areas . | . . . Known Exits Taken . | . . . Unknown Exits Taken 2 | 1 1 . Scrap Searched 1 | . . 1 Spaces Dug . | . . . Terrain Destroyed 6 | . 5 1 Melee . | . . . Projectile 1 | . . 1 AOE 5 | . 5 . Terrain Rammed . | . . . Walls Destroyed . | . . . Machines Disabled . | . . . Actions | -11 -10 -10 --------- Run | Scr Mat Min Total 712 | 69 125 518 Wait 7 | . 5 2 Move 585 | 55 108 422 Hop . | . . . Pick Up 27 | 8 5 14 Fast Attach . | . . . Attach 16 | 6 1 9 Detach . | . . . Swap 2 | . . 2 Drop 5 | . 1 4 Fire 68 | . 5 63 Melee . | . . . Ram . | . . . Kick 2 | . . 2 Crush . | . . . Escape Stasis . | . . . Rewire . | . . . Trap . | . . . Miscellaneous . | . . . Route ------- -11/Scrapyard -10/Materials -10/Mines (discovered 3 exits: [*Mat x2] / [*Exi]) History --------- Turn | Location | Event 42 | -11/Scrapyard | Discovered new exit (range 16) 79 | -11/Scrapyard | Entered Materials 236 | -10/Materials | Discovered new exit (range 8) 248 | -10/Materials | Entered Mines 300 | -10/Mines | Build established: Mutant 313 | -10/Mines | Found a hidden stash of uninstalled traps 492 | -10/Mines | Discovered new exit (range 4) 495 | -10/Mines | Learned Materials garrison access intel 611 | -10/Mines | Excavation squad dispatched 611 | -10/Mines | A large section of the Mines collapsed 702 | -10/Mines | Core integrity fell below 50% 730 | -10/Mines | Lost 4 parts (1p1n2w) 800 | -10/Mines | Deemed a non-threat by the Exiles lab entrance 800 | -10/Mines | Discovered new exit (range 5) 1058 | -10/Mines | Discovered new exit (range 9) 1102 | -10/Mines | Core integrity fell below 20% 1116 | -10/Mines | Destroyed by S-10 Pest with Light Assault Rifle Last Messages --------------- R-06 Scavenger collects Com. Wheel. S-10 Pest destroyed. Switching to secondary target: S-10 Pest. S-10 Pest destroyed. Switching to secondary target: S-10 Pest. Seismic Survey Station disabled. Lgt. Assault Rifle destroyed. S-10 Pest destroyed. Acquired 15 matter. Acquired 12 matter. EXIT=FOUND Kicked S-10 Pest out of the way. Slammed into S-10 Pest. Assault Rifle destroyed. Acquired 1 matter. Destroyed Flight Unit. Ion Engine destroyed. S-10 Pest destroyed. Mining Laser destroyed. Aluminum Leg destroyed. Map ----- +----------------------------------------------------+ | | | ??????????????????????????????????????? | | ??????????????????????????????????????? | | ####????????##????###?????????????????? | | ##??????? ???? #?????????????????? | | #??????? ??? #?????????????????? | | #??????????? ? #?????????????????? | | #??????????""" """ #?????????????????? | | #????????? """ """ #?????????????????? | | #????????? """ """ #?????????????????? | | #????????? #?????????????????? | | #????????# """ #?????????????????? | | #????????# """ #?????????????????? | | #????????# """ #?????????????????? | | #????????# < #?????????????????? | | #????????# """ #?????????????????? | | #????????# """ #?????????????????? | | ##???????# """ #?????????????????? | | ###?????# #?????????????????? | | ##????# #?????????????????? | | #????######## ###???###???????????? | | #???????????# ####### ???????????? | | ##???????????# ## #???????????? | | #????????????###### ## #???????????? | | ##????????????????# ## ##??????????? | | #???????????????## ##@;#??????????? | | #???????????????# ss##??????????? | | # #???????????????# #####???????????? | | # #???????????????# #???????????????? | | #???????????????# #???????????????? | | #???????????????# #???????????????? | | #####???????????????# #???????????????? | | ??????????????????### ##??????????????? | | ?????????????????## ##?????????????? | | ?????????????????# ###???????????? | | ?????????????????# ##??????????? | | ?????????????????# #??????????? | | ?????????????????# #??????????? | | ?????????????????# #??????????? | | #????????????????# #??????????? | | ##???????????????# ## #??????????? | | ##??????????????## #?# ##??????????? | | *!#???????????????# #??###???????????? | | =%#???????????????# #????????????????? | | =##??????????????# #????????????????? | | = ####???????????# #????????????????? | | ##???????#### ###??????????????? | | ** #??????## ##?????????????? | | % #??????# #?????????????? | | % #??????# ##????????????? | +----------------------------------------------------+ Best States ------------- Heat Dissipation 35 Energy Generation 10 Energy Capacity 250 Matter Stores 300 Matter Capacity 300 Sight Range 16 Terrain Scan Density 10 Evasion (%) 40 Item Schematics ----------------- None Robot Schematics ------------------ None Fabricated ------------ Nothing Alien Tech Used ----------------- None Achievements -------------- None Challenges ------------ None Game ------ Seed ColdPotentialBoosters Manual? 0 Play Time 00:08:58 Cumulative 15.6 hours Start 2021.07.18 @ 00:43:36 End 2021.07.18 @ 00:52:10 Sessions 1 Manual Loads 0 Difficulty Rogue Special Mode None Game No. 31 Rogue 31 Adventurer 0 Explorer 0 Win Type - Total 0 Types 0/0/0/0/0/0/0/0/0 Lore% 23 Gallery% 23 Achievement% 17 Wizard Run 0 Options --------- ASCII 0 Keyboard 0 Movement Mouse Keybinds 0 Fullscreen 2 Font 20/Terminus Map View 66x50 Tactical HUD 0 Map Filters NONE Filters NONE Steam 1 RUN: 0912f83c-bb9b-43c9-9266-78556698d2e2